bitfinex/quotes_ETHUSD_20250804
["timestamp","ask_amount","ask_price","bid_price","bid_amount"]
[1754319540518,0.001,3641.1,3641.0,2.74649821]
[1754319540717,4.361,3641.1,3641.0,2.74649821]
[1754319540916,0.001,3641.1,3641.0,3.3332754]
[1754319541154,4.361,3641.1,3641.0,3.7079754]
[1754319541352,4.361,3641.1,3641.0,2.88329821]
[1754319541919,4.361,3641.1,3641.0,3.07309821]
[1754319542122,4.36,3641.1,3641.0,2.88329821]
[1754319542322,4.36,3641.1,3641.0,0.1368]
[1754319542522,4.36,3641.1,3640.8,0.1368]
[1754319542718,4.36,3641.1,3641.0,2.74649821]
[1754319543121,4.36,3641.1,3640.9,2.74654333]
[1754319544235,4.36,3641.1,3641.0,2.74649821]
[1754319544850,0.001,3641.1,3641.0,3.30949234]
[1754319545078,4.36,3641.1,3641.0,3.68419234]
[1754319545657,4.36,3641.1,3641.0,3.63609234]
[1754319546137,0.001,3641.1,3641.0,3.63609234]
[1754319546478,0.001,3641.1,3641.0,3.68419234]
[1754319547180,0.001,3641.1,3641.0,3.44629234]
[1754319548237,0.001,3641.1,3641.0,3.62059234]
[1754319548482,0.001,3641.1,3641.0,3.66869234]
[1754319549078,0.001,3641.1,3641.0,3.62059234]
[1754319549845,0.001,3641.1,3641.0,3.44629234]
[1754319550167,0.001,3641.1,3641.0,3.66869234]
[1754319550866,0.001,3641.1,3641.0,3.44629234]
[1754319551068,0.001,3641.1,3641.0,3.69615732]
[1754319551274,0.001,3641.1,3641.0,3.66869234]
[1754319552376,4.356,3641.8,3641.0,0.92219413]
[1754319552571,4.356,3641.8,3641.7,2.74597028]
[1754319552745,5.5042,3641.8,3641.7,2.88277028]
[1754319552948,1.1482,3641.8,3641.7,2.88277028]
[1754319553151,5.5042,3641.8,3641.7,2.88277028]
[1754319553645,5.5042,3641.8,3640.9,4.356]
[1754319553845,4.8262,3641.8,3641.6,2.74599572]
[1754319554045,4.8262,3641.8,3640.4,0.0481]
[1754319554046,1.1482,3641.7,3640.6,4.356]
[1754319554272,1.1482,3641.6,3641.5,2.74607417]
[1754319554472,1.1482,3641.6,3641.5,2.88287417]
[1754319554672,1.1482,3641.6,3641.5,0.1368]
[1754319555267,1.1482,3641.6,3641.5,2.8829211]
[1754319555670,1.1482,3641.6,3641.3,2.88305762]
[1754319555993,1.1482,3641.5,3641.4,2.74614138]
[1754319556425,1.1482,3641.5,3641.3,2.88303889]
[1754319556627,4.356,3641.8,3641.3,2.88303889]
[1754319556827,4.356,3641.8,3640.8,3.0]
[1754319556828,1.1482,3641.4,3640.8,3.0]
[1754319557028,4.355,3641.3,3641.0,0.1368]
[1754319557324,5.64,3641.3,3640.7,0.1368]
[1754319557524,0.678,3641.2,3640.7,0.1368]
[1754319557686,0.4702,3641.1,3640.7,2.88347419]
[1754319557887,0.678,3641.0,3640.7,2.88347419]
[1754319558087,4.8242,3640.9,3640.6,2.74676974]
[1754319558400,1.1482,3640.8,3640.7,2.74672453]
[1754319558590,4.0022,3640.9,3640.7,2.74672453]
[1754319560423,4.0022,3640.9,3640.6,2.7467785]
[1754319560742,1.1482,3640.8,3640.6,2.74679471]
[1754319561060,1.1482,3640.8,3640.5,2.74687542]
[1754319561215,1.1482,3640.8,3640.6,2.74679997]
[1754319561413,1.1482,3640.8,3640.7,2.74672453]
[1754319561619,4.15014678,3640.8,3640.4,0.1368]
[1754319561948,4.0022,3640.9,3640.0,2.74718153]
[1754319561949,0.1368,3640.6,3640.0,2.74718153]
[1754319562250,0.1368,3640.6,3639.9,0.1368]
[1754319562251,5.032,3640.5,3639.9,0.1368]
[1754319562459,5.5022,3640.5,3640.2,2.74704881]
[1754319562615,0.1368,3640.6,3639.9,0.1368]
[1754319562954,1.1482,3641.2,3640.4,2.74692244]
[1754319562955,4.354,3640.5,3640.4,2.74692244]
[1754319563470,4.354,3640.5,3640.2,0.1368]
[1754319563750,1.1482,3640.4,3640.2,2.88389106]
[1754319563951,1.1482,3640.4,3640.2,0.1368]
[1754319564128,1.1482,3640.3,3639.5,2.74763016]
[1754319564317,1.1482,3640.3,3639.4,1e-08]
[1754319564318,4.4908,3640.5,3640.3,2.74697817]
[1754319564655,5.1688,3640.5,3640.3,2.74697817]
[1754319564855,0.678,3640.4,3640.2,2.74707514]
[1754319565068,1.1482,3640.3,3640.0,2.74725274]
[1754319565219,1.1482,3640.3,3640.1,2.74712085]
[1754319565417,1.1482,3640.3,3640.2,2.7471018]
[1754319565810,0.678,3640.3,3640.2,2.7471018]
[1754319566448,1.1482,3641.0,3640.4,2.74693659]
[1754319566622,0.1368,3640.7,3640.4,2.74693659]
[1754319566819,1.40318495,3640.6,3640.1,2.88390677]
[1754319567122,4.60798495,3640.5,3640.3,2.74700476]
[1754319567341,0.93298495,3640.4,3640.2,2.74705596]
[1754319567746,0.93298495,3640.4,3640.1,0.1368]
[1754319567960,1.1482,3640.3,3639.9,2.88412822]
[1754319568120,1.1482,3640.2,3639.9,0.1368]
[1754319568480,4.353,3640.1,3640.0,2.74725274]
[1754319568764,0.1368,3641.0,3640.1,0.1368]
[1754319568977,4.60688944,3640.9,3640.5,2.74680418]
[1754319569142,4.60688944,3640.9,3640.2,0.644]
[1754319569143,0.93288944,3640.8,3640.6,2.74678213]
[1754319569341,1.1482,3640.7,3640.6,2.74678213]
[1754319569644,1.40308944,3640.7,3639.7,3.0]
[1754319569846,1.53988944,3640.6,3640.2,2.74706063]
[1754319570047,4.60688944,3640.5,3640.1,2.7471092]
[1754319570264,0.93284715,3640.4,3640.1,2.74717727]
[1754319570439,0.678,3640.4,3640.1,2.74717727]
[1754319570634,0.93285212,3640.4,3640.3,2.74702634]
[1754319570864,0.93283492,3640.4,3640.3,2.74702634]
[1754319571838,0.93283492,3640.4,3640.2,2.74707085]
[1754319572038,1.0893,3640.3,3640.1,2.74717076]
[1754319572243,0.6342,3640.2,3640.1,2.74717727]
[1754319573461,0.6342,3640.2,3640.0,0.1368]
[1754319573765,6.601,3642.3,3639.6,3.27476302]
[1754319573766,5.5781,3640.1,3639.9,2.74731765]
[1754319573966,4.4888,3640.1,3639.5,0.1368]
[1754319574167,1.0893,3640.0,3639.5,0.1368]
[1754319574554,0.4551,3640.0,3639.7,2.74745743]
[1754319574862,0.1368,3640.1,3639.5,0.1368]
[1754319575073,4.351,3639.9,3639.8,2.7474037]
[1754319575284,4.351,3640.4,3640.3,2.74702634]
[1754319575433,0.1368,3640.8,3640.7,2.74672453]
[1754319575633,4.74244733,3640.8,3640.6,2.7467783]
[1754319575835,5.69494733,3640.7,3639.3,6.40432781]
[1754319576067,0.1368,3640.3,3639.9,2.74727347]
[1754319576257,4.351,3640.2,3639.9,2.74727347]
[1754319576458,5.4403,3640.2,3639.7,0.1368]
[1754319576661,4.351,3640.2,3640.1,2.74717727]
[1754319576856,5.4403,3640.2,3640.0,2.74723921]
[1754319577063,1.0893,3640.1,3639.7,0.1368]
[1754319577263,1.0893,3640.1,3639.8,2.7473794]
[1754319577449,0.6342,3640.0,3639.9,2.74731727]
[1754319577868,4.351,3640.2,3639.9,2.74731727]
[1754319578068,4.9852,3640.2,3639.9,2.74731727]
[1754319578273,5.4403,3640.2,3640.0,2.74724585]
[1754319578461,5.4403,3640.2,3639.9,2.74729946]
[1754319578658,0.6342,3640.1,3639.9,2.74729946]
[1754319579072,0.4551,3640.1,3639.8,2.74737755]
[1754319579274,1.0893,3640.0,3639.7,2.88425041]
[1754319579440,4.35,3639.9,3639.7,2.88425041]
[1754319579749,4.35,3639.9,3639.7,2.88426214]
[1754319579954,4.9842,3639.9,3639.7,0.1368]
[1754319580339,0.1368,3640.3,3639.7,0.1368]
[1754319580577,4.35,3640.2,3640.1,2.74710721]
[1754319580751,4.35,3640.2,3640.1,3.95321456]
[1754319580950,4.35,3640.2,3640.1,4.53771456]
[1754319582276,6.599,3640.9,3640.8,2.74664908]
[1754319582481,11.20285952,3640.9,3640.8,2.74664908]
[1754319583785,11.83705952,3640.9,3640.8,2.74664908]
[1754319584284,11.20285952,3640.9,3640.7,2.74670209]
[1754319584488,4.349,3640.9,3640.8,2.74664908]
[1754319584661,4.60411602,3640.9,3640.8,2.74664908]
[1754319585055,0.25511602,3640.9,3640.8,3.40324908]
[1754319585257,4.60411602,3640.9,3640.8,3.40324908]
[1754319585967,4.60311602,3640.9,3640.8,2.74664908]
[1754319586173,4.60311602,3640.9,3640.8,4.85653645]
[1754319586767,4.60311602,3640.9,3640.8,4.40883645]
[1754319587165,0.25511602,3640.9,3640.8,4.40883645]
[1754319587656,4.60311602,3640.9,3640.8,4.40883645]
[1754319588581,4.60311602,3640.9,3640.8,4.85653645]
[1754319588880,0.001,3641.5,3641.4,2.74619651]
[1754319589090,4.60355188,3641.5,3641.4,2.74619651]
[1754319589387,4.60355188,3641.5,3641.4,4.08884437]
[1754319589587,0.25655188,3641.5,3641.4,4.08884437]
[1754319589887,0.001,3641.5,3641.4,4.53654437]
[1754319590094,0.001,3641.5,3641.4,4.07999437]
[1754319590269,0.25655188,3641.5,3641.4,4.07999437]
[1754319590469,0.001,3641.5,3641.4,4.07999437]
[1754319591382,0.001,3641.5,3641.4,3.42339437]
[1754319591582,0.001,3641.5,3641.4,2.87414651]
[1754319593631,0.001,3641.5,3641.4,3.97844651]
[1754319594095,1e-08,3641.5,3641.4,4.52844651]
[1754319594281,1.43799585,3642.4,3642.3,2.74551794]
[1754319594468,1.43799585,3642.4,3642.3,3.40211794]
[1754319594469,0.001,3642.4,3642.3,3.40211794]
[1754319594674,0.001,3642.4,3642.3,2.88231794]
[1754319595262,0.001,3642.4,3642.3,3.51077009]
[1754319595501,0.001,3642.4,3642.3,4.61507009]
[1754319596069,0.001,3642.4,3642.3,4.16737009]
[1754319596462,0.001,3642.4,3642.3,3.51077009]
[1754319596996,0.001,3642.4,3642.3,4.16737009]
[1754319597199,0.001,3642.4,3642.3,3.51077009]
[1754319597780,0.001,3642.4,3642.3,4.16737009]
[1754319598166,0.001,3642.4,3642.3,8.51137009]
[1754319598395,0.001,3642.4,3642.3,8.95907009]
[1754319599725,0.001,3642.8,3642.7,2.74521646]
[1754319600073,0.001,3642.8,3642.7,3.53861646]
[1754319600291,0.001,3642.8,3642.7,2.88201646]
[1754319600494,0.001,3642.8,3642.7,7.22501646]
[1754319601184,0.001,3642.8,3642.7,2.88201646]
[1754319601389,1.1264,3642.8,3642.7,2.88201646]
[1754319602685,0.001,3642.8,3642.7,2.88201646]
[1754319602887,0.001,3642.8,3642.7,3.44474845]
[1754319603088,1.1264,3642.8,3642.7,2.88201646]
[1754319603910,0.001,3642.8,3642.7,2.88201646]
[1754319604705,1.1264,3642.8,3642.7,2.88201646]
[1754319605008,0.001,3642.8,3642.7,2.88201646]
[1754319605774,1.1264,3642.8,3642.7,2.88201646]
[1754319606174,0.001,3642.8,3642.7,2.88201646]
[1754319606783,0.6565,3642.8,3642.7,2.88201646]
[1754319607281,1.1264,3642.8,3642.7,2.88201646]
[1754319607478,0.6565,3642.8,3642.7,2.88201646]
[1754319607678,1.1264,3642.8,3642.7,2.88201646]
[1754319607878,1.34924916,3642.8,3642.7,0.1368]
[1754319608179,5.4664,3642.8,3641.7,2.74592482]
[1754319608382,5.4664,3642.8,3641.3,2.74626722]
[1754319608383,0.1368,3642.4,3641.8,0.1368]
[1754319608689,1.1254,3642.3,3642.0,2.74569437]
[1754319609016,4.5154,3642.2,3642.1,2.7456687]
[1754319609180,4.5154,3642.2,3641.8,0.1368]
[1754319609378,0.1368,3642.4,3642.1,2.7456687]
[1754319609678,4.339,3642.5,3642.3,2.88231794]
[1754319609874,4.339,3642.5,3642.4,2.74544256]
[1754319610081,4.9945,3642.5,3642.4,2.74544256]
[1754319610489,5.4644,3642.5,3642.4,2.74544256]
[1754319610795,1.1264,3642.8,3642.7,2.74521646]
[1754319610992,8.4654,3642.8,3642.7,2.74521646]
[1754319611190,4.1264,3642.8,3642.7,2.74521646]
[1754319611479,4.34,3642.8,3642.7,2.74521646]
[1754319611678,0.001,3642.8,3642.7,3.30794835]
[1754319612899,0.6565,3642.8,3642.7,3.30794835]
[1754319613100,0.001,3642.8,3642.7,2.74521646]
[1754319613294,1.1264,3642.8,3642.7,2.74521646]
[1754319613946,1.1264,3642.8,3642.6,0.1368]
[1754319614250,1.1254,3642.7,3642.6,2.74529182]
[1754319614427,1.1254,3642.7,3642.5,2.74530666]
[1754319614603,1.1254,3642.6,3642.5,2.74530666]
[1754319614798,1.1254,3642.6,3642.3,0.1368]
[1754319614996,0.001,3642.8,3642.5,2.74536719]
[1754319615196,0.001,3642.8,3642.3,0.1368]
[1754319615631,1.1254,3642.7,3642.3,0.1368]
[1754319615831,0.001,3642.8,3642.3,0.1368]
[1754319616035,0.001,3642.8,3642.7,2.74521646]
[1754319616333,1.1264,3642.8,3642.7,2.74521646]
[1754319616838,0.001,3642.8,3642.7,2.74521646]
[1754319617003,0.001,3642.8,3642.7,3.29426939]
[1754319617849,0.001,3642.8,3642.7,4.10176939]
[1754319618014,0.001,3643.3,3643.2,2.7448397]
[1754319618419,0.001,3643.3,3643.2,2.8816397]
[1754319620215,1e-08,3643.3,3643.2,4.0063397]
[1754319620415,1e-08,3643.3,3643.2,3.55676621]
[1754319621840,1.12540001,3643.3,3643.2,2.8816397]
[1754319622026,1.12540001,3643.3,3643.2,2.7448397]
[1754319622227,1.12540001,3643.3,3643.1,2.74485738]
[1754319622432,4.336,3643.2,3643.0,2.74499039]
[1754319622637,1.1254,3643.1,3643.0,2.74496949]
[1754319623228,4.336,3643.2,3643.1,2.74491504]
[1754319623955,4.336,3643.2,3643.1,2.88171504]
[1754319624241,5.4614,3643.2,3643.1,2.88171504]
[1754319624439,5.45025801,3643.2,3643.1,2.88171504]
[1754319624843,4.32485801,3643.2,3643.1,2.88171504]
[1754319625034,4.32485801,3643.2,3643.1,4.38959165]
[1754319625340,4.32485801,3643.2,3643.1,3.71889165]
[1754319625548,4.32485801,3643.2,3643.1,2.88171504]
[1754319625719,5.45025801,3643.2,3643.1,2.88171504]
[1754319625911,5.70501251,3643.2,3643.1,2.88171504]
[1754319626106,4.57961251,3643.2,3643.1,2.74491504]
[1754319626342,4.32485801,3643.2,3643.1,2.74491504]
[1754319627465,1e-08,3643.3,3643.2,2.7448397]
[1754319629746,1.12540001,3643.3,3643.2,2.7448397]
[1754319630111,0.65550001,3643.3,3643.2,2.7448397]
[1754319630312,1.12540001,3643.3,3643.2,2.7448397]
[1754319630744,1e-08,3643.3,3643.0,2.74498898]
[1754319630951,1.37996236,3643.3,3643.2,2.7448397]
[1754319631246,0.25456236,3643.3,3643.2,2.7448397]
[1754319631452,0.47120001,3643.3,3643.2,2.7448397]
[1754319631831,1.07730001,3643.3,3643.2,2.7448397]
[1754319632360,1.33186374,3643.3,3643.2,2.7448397]
[1754319632922,0.25456374,3643.3,3643.2,2.7448397]
[1754319633254,1e-08,3643.3,3643.2,2.7448397]
[1754319633414,4.33300001,3643.3,3643.2,2.7448397]
[1754319633612,4.33300001,3643.3,3643.2,2.8816397]
[1754319634215,4.33300001,3643.3,3643.2,3.50581271]
[1754319634716,1e-08,3643.3,3643.2,3.50581271]
[1754319634946,1e-08,3643.3,3643.2,2.8816397]
[1754319635574,0.60610001,3643.3,3643.2,2.8816397]
[1754319635749,1.07730001,3643.3,3642.3,0.002]
[1754319635950,0.1368,3642.9,3642.3,2.74744674]
[1754319636163,5.4093,3642.8,3642.5,2.74535061]
[1754319636462,4.2141,3642.7,3642.3,0.002]
[1754319636759,4.2141,3642.7,3642.4,2.74541617]
[1754319636963,1.0773,3642.6,3642.4,2.74541617]
[1754319637149,1.0773,3642.6,3642.3,0.002]
[1754319637330,1.46858723,3642.5,3642.3,2.74749049]
[1754319637526,5.4093,3642.4,3642.3,2.74749049]
[1754319637724,5.66377956,3642.4,3642.3,0.002]
[1754319639093,8.40922212,3642.4,3642.3,0.002]
[1754319639225,41.40922212,3642.4,3642.3,0.002]
[1754319639834,38.66377956,3642.4,3642.3,0.002]
[1754319640348,41.40922212,3642.4,3642.3,0.002]
[1754319640551,11.40900431,3642.4,3642.3,0.002]
[1754319641052,41.95900431,3642.4,3642.3,0.002]
[1754319641257,41.95900431,3642.4,3642.3,1e-08]
[1754319641827,42.30673949,3642.4,3642.3,1e-08]
[1754319642681,42.66860563,3642.4,3642.3,1e-08]
[1754319648384,42.30673949,3642.4,3642.3,1e-08]
[1754319648887,55.24710035,3642.4,3642.3,1e-08]
[1754319650294,62.29510035,3642.4,3642.3,1e-08]
[1754319650691,62.65696649,3642.4,3642.3,1e-08]
[1754319650894,2.74657364,3640.9,3640.8,0.002]
[1754319651204,40.07657364,3640.9,3640.8,0.002]
[1754319651581,41.15387364,3640.9,3640.8,0.002]
[1754319652255,40.07657364,3640.9,3640.8,0.002]
[1754319652457,7.33,3640.9,3640.8,0.6171]
[1754319652770,7.4668,3640.9,3640.8,1.0666]
[1754319652984,7.4668,3640.9,3640.8,0.002]
[1754319653201,7.4668,3640.9,3640.8,0.6171]
[1754319653408,7.33,3640.9,3640.8,3.81324908]
[1754319653564,7.33,3640.9,3640.8,1.0666]
[1754319654395,4.33,3640.9,3640.8,3.81324908]
[1754319655194,6.7338,3641.3,3640.9,2.74657364]
[1754319655368,3.0,3641.1,3641.0,2.74649821]
[1754319655559,3.0,3641.1,3641.0,3.81106652]
[1754319655758,4.329,3641.1,3641.0,0.6151]
[1754319655995,4.329,3641.1,3640.8,0.002]
[1754319656163,0.1368,3641.0,3640.8,0.002]
[1754319656356,4.329,3640.9,3640.8,2.74864908]
[1754319656561,4.329,3640.9,3640.8,0.6171]
[1754319656898,4.329,3640.9,3640.8,0.002]
[1754319657098,4.329,3640.9,3640.8,2.74864908]
[1754319657467,4.329,3640.9,3640.8,3.36374908]
[1754319657665,4.329,3640.9,3640.8,0.002]
[1754319660228,0.1368,3641.0,3640.9,2.74657364]
[1754319660526,6.7338,3641.3,3641.2,2.74634735]
[1754319660670,6.598,3642.6,3641.5,2.74607353]
[1754319660870,0.1368,3641.8,3641.6,0.6151]
[1754319661074,0.1368,3641.8,3641.7,3.37597028]
[1754319661372,0.1368,3641.8,3641.7,4.49978934]
[1754319661572,4.4648,3641.8,3641.7,4.49978934]
[1754319662109,4.328,3641.8,3641.7,2.88277028]
[1754319662317,30.1368,3641.7,3640.8,0.1388]
[1754319662469,3.1368,3641.5,3640.8,2.74862304]
[1754319662805,3.0,3641.1,3640.8,0.002]
[1754319663006,4.327,3641.0,3640.8,0.002]
[1754319663509,4.327,3641.0,3640.8,2.74858471]
[1754319663711,4.327,3641.0,3640.8,0.002]
[1754319663893,4.9643,3641.0,3640.8,0.002]
[1754319664609,4.759,3641.0,3640.8,0.002]
[1754319664827,37.6186798,3640.9,3640.8,0.002]
[1754319665338,44.56441498,3640.9,3640.8,0.002]
[1754319666332,6.29687542,3640.5,3640.4,0.002]
[1754319666627,57.62134137,3640.5,3640.4,0.002]
[1754319666787,59.03837655,3640.5,3640.4,0.002]
[1754319668830,28.78557039,3640.5,3640.4,0.002]
[1754319669033,29.03859476,3640.5,3640.4,0.002]
[1754319669334,59.03865504,3640.5,3640.4,0.002]
[1754319671895,29.03865504,3640.5,3640.4,0.002]
[1754319672332,59.03865504,3640.5,3640.4,0.002]
[1754319674137,48.99526007,3640.5,3640.4,0.002]
[1754319674293,44.66926007,3640.5,3640.4,0.002]
[1754319674499,37.30308465,3640.5,3640.4,0.002]
[1754319674742,41.62908465,3640.5,3640.4,0.002]
[1754319674921,41.62908465,3640.5,3640.4,0.632]
[1754319675125,47.37596007,3640.5,3640.4,0.002]
[1754319675330,48.01326007,3640.5,3640.4,0.002]
[1754319675570,48.99526007,3640.5,3640.4,0.002]
[1754319675854,40.30308465,3640.5,3640.4,0.002]
[1754319676008,41.62808465,3640.5,3640.4,1.0971]
[1754319676206,33.25308465,3640.5,3640.4,1.0971]
[1754319676439,4.57808465,3640.5,3640.4,3.84405088]
[1754319677204,0.1368,3640.6,3640.5,2.74687542]
[1754319677410,0.25303959,3640.8,3640.7,2.74672453]
[1754319677643,4.57803959,3640.8,3640.7,2.74672453]
[1754319677842,4.325,3640.8,3640.7,2.74672453]
[1754319678346,0.1368,3641.2,3641.1,2.74642278]
[1754319678503,0.1368,3641.2,3641.1,3.84152278]
[1754319678705,6.6,3642.2,3641.6,2.74604569]
[1754319678706,0.1368,3641.7,3641.6,2.74604569]
[1754319678914,4.4608,3641.7,3641.6,3.84114569]
[1754319679103,4.57707469,3641.7,3641.6,3.84114569]
[1754319679448,4.324,3641.7,3641.6,3.84114569]
[1754319681318,4.324,3641.7,3641.6,3.37604569]
[1754319682143,4.324,3641.7,3641.6,3.84114569]
[1754319682460,4.324,3641.7,3641.6,4.51355395]
[1754319682627,0.1368,3642.0,3641.9,2.74581948]
[1754319682946,4.4598,3642.0,3641.9,2.74581948]
[1754319683148,4.4598,3642.0,3641.9,3.84091948]
[1754319683357,0.001,3642.4,3642.1,2.7456687]
[1754319683657,0.25275378,3643.4,3643.2,2.7448397]
[1754319684151,4.322,3643.8,3643.2,3.8399397]
[1754319684447,4.4588,3644.0,3643.2,3.9767397]
[1754319684652,1e-08,3643.6,3643.5,2.74461369]
[1754319684815,1e-08,3643.6,3643.5,3.70773036]
[1754319685010,1e-08,3643.6,3643.5,4.91218423]
[1754319685351,1e-08,3643.7,3643.6,2.74453836]
[1754319685566,1e-08,3643.7,3643.6,8.16063836]
[1754319687605,1e-08,3643.7,3643.6,3.83963836]
[1754319687757,1e-08,3643.7,3643.6,9.20078098]
[1754319688091,1e-08,3643.7,3643.6,2.74453836]
[1754319688950,1e-08,3643.7,3643.6,3.83963836]
[1754319689152,4.31350618,3644.0,3643.9,2.74431241]
[1754319689383,4.31350618,3644.0,3643.8,2.74436414]
[1754319689794,4.31350618,3644.0,3643.6,2.74447756]
[1754319689991,0.6373,3643.9,3643.1,0.4651]
[1754319690166,1.0693,3643.9,3643.4,2.74463013]
[1754319690494,0.6373,3643.8,3643.5,2.74454887]
[1754319690691,0.6373,3643.8,3643.4,2.74466426]
[1754319691061,1.0693,3643.7,3643.0,2.74493227]
[1754319691297,1.0693,3643.7,3643.3,2.74470349]
[1754319691499,1.0258,3643.7,3643.3,2.74470349]
[1754319691700,4.31350618,3644.0,3643.4,0.6269]
[1754319692112,4.31350618,3644.0,3643.8,2.74433163]
[1754319692308,4.31350618,3644.0,3643.9,2.74431241]
[1754319692653,0.001,3644.2,3644.1,2.74416179]
[1754319693000,0.001,3644.3,3644.2,2.74408649]
[1754319693352,0.001,3644.3,3644.2,4.76022758]
[1754319693639,0.001,3644.3,3644.2,4.30268672]
[1754319694038,0.001,3644.3,3644.2,3.67578672]
[1754319694212,0.001,3644.3,3644.2,2.74408649]
[1754319694697,1.0549,3644.3,3643.3,0.27447035]
[1754319694902,1.0549,3644.3,3644.2,2.74408649]
[1754319694903,0.001,3644.3,3644.2,2.74408649]
[1754319695234,0.5948,3644.3,3643.5,2.74458197]
[1754319695445,1.0549,3644.3,3643.6,0.40760523]
[1754319695651,4.316,3644.2,3643.3,0.27447035]
[1754319695934,3.0,3644.1,3643.9,2.74425298]
[1754319696099,4.0539,3644.1,3643.5,2.74456392]
[1754319696300,3.0,3643.9,3643.3,2.7447125]
[1754319696498,3.7981568,3644.0,3643.3,2.74474377]
[1754319696499,30.0,3643.8,3643.3,2.74474377]
[1754319696725,8.3699,3643.7,3641.7,3.17605052]
[1754319696913,3.0,3643.3,3642.7,2.7452118]
[1754319697126,5.3699,3643.2,3643.0,2.74498701]
[1754319697331,1.0539,3643.1,3642.9,2.74505021]
[1754319697627,0.5938,3643.0,3642.9,2.74505021]
[1754319697938,0.1368,3642.9,3642.2,0.1368]
[1754319698142,0.1368,3642.9,3642.8,2.7451411]
[1754319698324,0.1368,3642.9,3642.8,3.29417835]
[1754319698529,3.0,3643.1,3642.8,3.29417835]
[1754319699137,3.0,3643.1,3643.0,2.74499039]
[1754319699658,3.0,3643.1,3642.9,2.74503786]
[1754319699844,3.4601,3643.1,3643.0,2.74499039]
[1754319700155,3.4601,3643.1,3642.9,2.74505114]
[1754319700355,0.4601,3643.0,3642.6,0.1368]
[1754319700563,1.0539,3642.9,3641.9,0.6269]
[1754319700730,4.315,3642.8,3642.3,0.1368]
[1754319700918,4.315,3642.8,3642.6,2.74528981]
[1754319701122,0.5938,3642.7,3642.6,2.74528981]
[1754319701671,4.0539,3642.7,3642.5,2.74535421]
[1754319701962,1.0539,3642.6,3642.4,2.74541694]
[1754319702160,1.0539,3642.6,3642.5,2.74536719]
[1754319702714,1.0539,3642.6,3642.1,0.1368]
[1754319702962,1.1907,3642.5,3642.4,2.74544116]
[1754319703158,1.1907,3642.5,3642.2,2.74553606]
[1754319703342,4.315,3642.4,3642.1,2.74565029]
[1754319703656,0.5938,3642.3,3642.2,2.74559332]
[1754319704363,0.5938,3642.3,3641.9,0.1368]
[1754319704364,1.0539,3642.3,3641.9,0.1368]
[1754319704657,3.0,3642.4,3642.3,2.74551794]
[1754319704859,0.1368,3642.5,3642.4,2.74544256]
[1754319705025,0.5938,3642.4,3642.1,2.7456687]
[1754319705221,0.5938,3642.3,3642.2,2.74559332]
[1754319705626,5.5057,3642.5,3642.3,2.74550391]
[1754319706067,5.5057,3642.5,3642.0,2.74574409]
[1754319706068,0.5938,3642.4,3642.0,2.74574409]
[1754319706396,1.0539,3642.3,3642.1,2.74566179]
[1754319706677,0.1368,3642.3,3642.2,2.74559332]
[1754319707376,1.1907,3642.3,3641.6,0.1368]
[1754319707682,0.5938,3642.2,3641.9,2.74581869]
[1754319707883,4.314,3642.1,3641.9,2.74581869]
[1754319708079,4.314,3642.1,3642.0,2.74574409]
[1754319708271,7.314,3642.1,3642.0,2.74574409]
[1754319709580,0.1368,3642.3,3642.2,2.74559332]
[1754319709779,4.314,3642.1,3642.0,3.2949015]
[1754319710390,0.1368,3642.4,3642.3,2.74551794]
[1754319710762,4.314,3642.4,3642.3,2.74551794]
[1754319710958,5.3679,3642.4,3642.0,0.55115741]
[1754319711200,4.0539,3642.3,3642.0,0.002]
[1754319711696,3.0,3642.3,3642.0,0.002]
[1754319711880,1.0539,3642.2,3642.0,0.002]
[1754319712295,0.5938,3642.1,3642.0,0.002]
[1754319712898,7.314,3642.1,3642.0,2.74767515]
[1754319713104,7.314,3642.1,3642.0,0.002]
[1754319713398,7.314,3642.1,3642.0,2.74774409]
[1754319713597,7.313,3642.1,3642.0,2.74774409]
[1754319714003,7.313,3642.1,3642.0,0.002]
[1754319714296,7.313,3642.1,3642.0,2.74774409]
[1754319714498,1.0539,3642.5,3642.2,2.74553608]
[1754319714698,4.313,3642.4,3642.2,2.74553608]
[1754319714863,4.313,3642.4,3642.0,0.002]
[1754319714864,0.5938,3642.3,3642.0,0.002]
[1754319715064,4.0539,3642.3,3642.0,0.002]
[1754319715265,1.0539,3642.2,3642.0,0.002]
[1754319715462,4.313,3642.1,3642.0,0.002]
[1754319715663,5.3669,3642.1,3642.0,0.002]
[1754319718608,8.3669,3642.1,3642.0,0.002]
[1754319719394,11.1125687,3642.1,3642.0,0.002]
[1754319719701,8.3669,3642.1,3642.0,0.002]
[1754319720018,4.312,3642.1,3642.0,2.74774409]
[1754319720182,6.595,3642.9,3642.1,2.74559784]
[1754319720385,3.0,3642.7,3642.4,2.74538706]
[1754319720683,7.9058,3642.8,3642.3,2.74549662]
[1754319720909,0.25257591,3642.7,3642.1,0.27475978]
[1754319721096,0.25257591,3642.7,3642.0,0.6289]
[1754319721097,0.25257591,3642.7,3642.6,2.74529182]
[1754319721296,4.312,3642.7,3642.6,2.74529182]
[1754319721512,5.15327591,3642.7,3642.6,2.74529182]
[1754319722014,4.56457591,3642.7,3642.6,2.74529182]
[1754319722232,3.1368,3642.8,3642.7,2.74521646]
[1754319722527,2.74559332,3642.2,3639.5,2.659666]
[1754319722737,1.82259499,3639.3,3639.1,0.002]
[1754319722882,7.312,3639.2,3639.1,0.002]
[1754319723086,9.13459499,3639.2,3639.1,0.002]
[1754319723641,4.82259499,3639.2,3639.1,0.002]
[1754319723785,9.13859499,3639.2,3639.1,0.002]
[1754319724397,1.81859499,3638.9,3638.5,2.75038274]
[1754319724731,4.315,3638.8,3638.7,2.74823425]
[1754319724905,6.13359499,3638.8,3638.7,2.74823425]
[1754319725312,1.81859499,3638.8,3638.7,3.35923425]